[Event "Early-Titled-Tuesday-Blitz-July-09-2024"]
[Site "Chess.com"]
[Date "2024.07.09"]
[Round "1"]
[White "JAN2404"]
[Black "subham777"]
[Result "0-1"]
[WhiteElo "2064"]
[BlackElo "2554"]
[TimeControl "180+1"]
[EndTime "8:05:45 PDT"]
[Termination "subham777 won by resignation"]

1. e4 {[%clk 0:02:59.5]} 1... e6 {[%clk 0:02:58.4]} 2. d4 {[%clk 0:02:58.6]}
2... d5 {[%clk 0:02:57.1]} 3. e5 {[%clk 0:02:59.2]} 3... c5 {[%clk 0:02:55.3]}
4. c3 {[%clk 0:02:59.6]} 4... Nc6 {[%clk 0:02:55.2]} 5. Nf3 {[%clk 0:02:58.4]}
5... Qb6 {[%clk 0:02:55.3]} 6. a3 {[%clk 0:02:58]} 6... cxd4 {[%clk 0:02:53.3]}
7. cxd4 {[%clk 0:02:57.9]} 7... Nge7 {[%clk 0:02:53.4]} 8. Nc3 {[%clk
0:02:57.5]} 8... a6 {[%clk 0:02:47.8]} 9. Be2 {[%clk 0:02:53.1]} 9... Nf5 {[%clk
0:02:45.9]} 10. Na4 {[%clk 0:02:52.4]} 10... Qa7 {[%clk 0:02:44.9]} 11. Be3
{[%clk 0:02:43.6]} 11... Be7 {[%clk 0:02:42.3]} 12. O-O {[%clk 0:02:41.9]} 12...
O-O {[%clk 0:02:41.4]} 13. Rc1 {[%clk 0:02:42.2]} 13... Bd7 {[%clk 0:02:36.5]}
14. b4 {[%clk 0:02:34.8]} 14... f6 {[%clk 0:02:24.5]} 15. Nc5 {[%clk 0:02:23.6]}
15... Bxc5 {[%clk 0:02:13]} 16. Rxc5 {[%clk 0:02:21.1]} 16... fxe5 {[%clk
0:02:12.8]} 17. dxe5 {[%clk 0:02:20.3]} 17... Nxe3 {[%clk 0:02:09.3]} 18. fxe3
{[%clk 0:02:19]} 18... Rac8 {[%clk 0:02:06.1]} 19. Kh1 {[%clk 0:02:03.3]} 19...
Ne7 {[%clk 0:01:58.9]} 20. Rxc8 {[%clk 0:01:37.4]} 20... Rxc8 {[%clk 0:01:59.8]}
21. Nd4 {[%clk 0:01:36.7]} 21... Qb8 {[%clk 0:01:54.1]} 22. Bh5 {[%clk
0:00:59.1]} 22... Qxe5 {[%clk 0:01:43.3]} 23. Bf7+ {[%clk 0:00:57]} 23... Kh8
{[%clk 0:01:41.3]} 24. Qh5 {[%clk 0:00:47.3]} 24... Qxe3 {[%clk 0:01:32.4]} 25.
Qh4 {[%clk 0:00:26.4]} 25... Rc1 {[%clk 0:01:24.7]} 26. Qf2 {[%clk 0:00:01.2]}
0-1

[Event "Early-Titled-Tuesday-Blitz-July-09-2024"]
[Site "Chess.com"]
[Date "2024.07.09"]
[Round "1"]
[White "gshwbedhkhd"]
[Black "NowInChess"]
[Result "1-0"]
[WhiteElo "2588"]
[BlackElo "2200"]
[TimeControl "180+1"]
[EndTime "8:05:47 PDT"]
[Termination "gshwbedhkhd won on time"]

1. f4 {[%clk 0:02:55.9]} 1... d5 {[%clk 0:02:58.7]} 2. Nf3 {[%clk 0:02:54.9]}
2... Nf6 {[%clk 0:02:58.8]} 3. g3 {[%clk 0:02:55.4]} 3... g6 {[%clk 0:02:56.4]}
4. Bg2 {[%clk 0:02:55.9]} 4... Bg7 {[%clk 0:02:57]} 5. O-O {[%clk 0:02:56.4]}
5... O-O {[%clk 0:02:57.4]} 6. d3 {[%clk 0:02:57]} 6... c5 {[%clk 0:02:57.4]} 7.
Qe1 {[%clk 0:02:56.8]} 7... d4 {[%clk 0:02:54.7]} 8. Na3 {[%clk 0:02:55.3]} 8...
Nc6 {[%clk 0:02:52.6]} 9. Bd2 {[%clk 0:02:55.4]} 9... Re8 {[%clk 0:02:48.3]} 10.
h3 {[%clk 0:02:50.5]} 10... e5 {[%clk 0:02:47.2]} 11. fxe5 {[%clk 0:02:49.1]}
11... Nxe5 {[%clk 0:02:47.3]} 12. Nxe5 {[%clk 0:02:50]} 12... Rxe5 {[%clk
0:02:47.3]} 13. Qf2 {[%clk 0:02:50.5]} 13... Rf5 {[%clk 0:02:41.5]} 14. Bf3
{[%clk 0:02:49.2]} 14... Rxf3 {[%clk 0:02:37.3]} 15. Qxf3 {[%clk 0:02:46.9]}
15... Bxh3 {[%clk 0:02:38.2]} 16. Rf2 {[%clk 0:02:43.5]} 16... Bg4 {[%clk
0:02:23.5]} 17. Qf4 {[%clk 0:02:39.9]} 17... Qb8 {[%clk 0:02:15.1]} 18. Nc4
{[%clk 0:02:35.6]} 18... Qxf4 {[%clk 0:02:11.2]} 19. Bxf4 {[%clk 0:02:36.5]}
19... b5 {[%clk 0:02:06.9]} 20. Nd6 {[%clk 0:02:33.9]} 20... a6 {[%clk
0:02:04.8]} 21. Bg5 {[%clk 0:02:33.8]} 21... Nd5 {[%clk 0:01:33.2]} 22. Nxf7
{[%clk 0:02:27.4]} 22... Ne3 {[%clk 0:01:22.7]} 23. Nh6+ {[%clk 0:02:20.3]}
23... Bxh6 {[%clk 0:01:19.5]} 24. Bxh6 {[%clk 0:02:21.2]} 24... Re8 {[%clk
0:01:10.3]} 25. a4 {[%clk 0:02:19]} 25... b4 {[%clk 0:01:08.9]} 26. Rc1 {[%clk
0:02:16.8]} 26... Nf5 {[%clk 0:01:02.2]} 27. Bf4 {[%clk 0:02:14.5]} 27... h6
{[%clk 0:00:55.9]} 28. Kh2 {[%clk 0:01:58.9]} 28... Kh7 {[%clk 0:00:44]} 29. c3
{[%clk 0:01:58.6]} 29... b3 {[%clk 0:00:30.8]} 30. cxd4 {[%clk 0:01:56]} 30...
Nxd4 {[%clk 0:00:14.6]} 31. Rxc5 {[%clk 0:01:54.7]} 31... Nxe2 {[%clk
0:00:12.1]} 32. Rc7+ {[%clk 0:01:54.2]} 32... Kg8 {[%clk 0:00:12.2]} 33. Bxh6
{[%clk 0:01:53.4]} 33... Bf5 {[%clk 0:00:03.8]} 34. Rc6 {[%clk 0:01:40.1]} 34...
Nd4 {[%clk 0:00:01]} 35. Rxa6 {[%clk 0:01:39.1]} 1-0

[Event "Early-Titled-Tuesday-Blitz-July-09-2024"]
[Site "Chess.com"]
[Date "2024.07.09"]
[Round "1"]
[White "KVAIDAN"]
[Black "Chess_master1982"]
[Result "0-1"]
[WhiteElo "2314"]
[BlackElo "2634"]
[TimeControl "180+1"]
[EndTime "8:05:48 PDT"]
[Termination "Chess_master1982 won by resignation"]

1. f4 {[%clk 0:03:00]} 1... f5 {[%clk 0:02:45.3]} 2. e4 {[%clk 0:02:59.5]} 2...
e6 {[%clk 0:02:38.5]} 3. Nc3 {[%clk 0:02:56.1]} 3... d5 {[%clk 0:02:38]} 4. exf5
{[%clk 0:02:54.5]} 4... exf5 {[%clk 0:02:38.1]} 5. Nf3 {[%clk 0:02:55]} 5... Nf6
{[%clk 0:02:37.6]} 6. Ne5 {[%clk 0:02:51.8]} 6... c5 {[%clk 0:02:35.1]} 7. Bb5+
{[%clk 0:02:51.4]} 7... Nbd7 {[%clk 0:02:33.1]} 8. d4 {[%clk 0:02:51.3]} 8... a6
{[%clk 0:02:31.2]} 9. Bxd7+ {[%clk 0:02:51.3]} 9... Bxd7 {[%clk 0:02:31.7]} 10.
dxc5 {[%clk 0:02:51.3]} 10... Bxc5 {[%clk 0:02:32.3]} 11. Qf3 {[%clk 0:02:46.1]}
11... O-O {[%clk 0:02:29.5]} 12. Bd2 {[%clk 0:02:39.6]} 12... d4 {[%clk
0:02:26]} 13. Nd5 {[%clk 0:02:39.2]} 13... Ne4 {[%clk 0:02:19]} 14. O-O-O {[%clk
0:02:24]} 14... Be6 {[%clk 0:02:15.4]} 15. c4 {[%clk 0:02:22.2]} 15... Bxd5
{[%clk 0:02:11.9]} 16. cxd5 {[%clk 0:02:20.9]} 16... Qxd5 {[%clk 0:02:12.8]} 17.
Kb1 {[%clk 0:02:19.7]} 17... a5 {[%clk 0:01:57.3]} 18. Nd3 {[%clk 0:02:14.2]}
18... b6 {[%clk 0:01:55.1]} 19. Rhf1 {[%clk 0:02:10.5]} 19... a4 {[%clk
0:01:55.1]} 20. a3 {[%clk 0:02:07.9]} 20... Rac8 {[%clk 0:01:52]} 21. g4 {[%clk
0:02:04.8]} 21... b5 {[%clk 0:01:50.8]} 22. gxf5 {[%clk 0:02:03.7]} 22... Qxf5
{[%clk 0:01:51.7]} 23. Ka1 {[%clk 0:02:01.7]} 23... Be7 {[%clk 0:01:47.6]} 24.
Rfe1 {[%clk 0:01:58]} 24... Nxd2 {[%clk 0:01:45.3]} 25. Rxd2 {[%clk 0:01:57.8]}
25... Bf6 {[%clk 0:01:45.5]} 26. Qb7 {[%clk 0:01:54.9]} 26... Rb8 {[%clk
0:01:41.3]} 27. Qa6 {[%clk 0:01:51.1]} 27... Qd5 {[%clk 0:01:38.5]} 28. Nb4
{[%clk 0:01:40]} 28... Qc4 {[%clk 0:01:38.7]} 29. Qe6+ {[%clk 0:01:39.3]} 29...
Kh8 {[%clk 0:01:36.1]} 30. f5 {[%clk 0:01:34.5]} 30... h6 {[%clk 0:01:32.3]} 31.
Qxc4 {[%clk 0:01:30.5]} 31... bxc4 {[%clk 0:01:32.1]} 32. Nc6 {[%clk 0:01:31.4]}
32... c3 {[%clk 0:01:29.5]} 33. Rd3 {[%clk 0:01:19.2]} 33... Rxb2 {[%clk
0:01:23.6]} 34. Nxd4 {[%clk 0:01:19.4]} 34... Rxh2 {[%clk 0:01:22.4]} 35. Ne6
{[%clk 0:01:13.8]} 35... Rb8 {[%clk 0:01:21.3]} 36. Nd4 {[%clk 0:01:11.1]} 36...
Rd2 {[%clk 0:01:20.4]} 37. Rxd2 {[%clk 0:01:03.6]} 37... cxd2 {[%clk 0:01:21.3]}
38. Rd1 {[%clk 0:01:03.9]} 38... Bxd4+ {[%clk 0:01:20.1]} 39. Ka2 {[%clk
0:01:04.8]} 39... Rb2+ {[%clk 0:01:18.9]} 40. Ka1 {[%clk 0:01:04.6]} 40... Rc2+
{[%clk 0:01:13]} 41. Kb1 {[%clk 0:01:04.9]} 41... Rc1+ {[%clk 0:01:13.3]} 42.
Rxc1 {[%clk 0:01:05.4]} 42... dxc1=Q+ {[%clk 0:01:14.2]} 43. Kxc1 {[%clk
0:01:05.9]} 43... h5 {[%clk 0:01:15.1]} 44. Kc2 {[%clk 0:01:06.4]} 44... Bf6
{[%clk 0:01:15.2]} 45. Kd3 {[%clk 0:01:07.3]} 45... h4 {[%clk 0:01:16.1]} 46.
Ke3 {[%clk 0:01:07]} 46... Kg8 {[%clk 0:01:16]} 47. Kf3 {[%clk 0:01:07.4]} 47...
Kf7 {[%clk 0:01:16.9]} 48. Kg4 {[%clk 0:01:07.9]} 48... Ke8 {[%clk 0:01:17.8]}
49. Kh5 {[%clk 0:01:08.3]} 49... Kd7 {[%clk 0:01:18.7]} 50. Kg6 {[%clk
0:01:08.8]} 50... Kd6 {[%clk 0:01:19.6]} 0-1

[Event "Early-Titled-Tuesday-Blitz-July-09-2024"]
[Site "Chess.com"]
[Date "2024.07.09"]
[Round "1"]
[White "marvinguevara"]
[Black "zsizsi99"]
[Result "0-1"]
[WhiteElo "2045"]
[BlackElo "2550"]
[TimeControl "180+1"]
[EndTime "8:05:48 PDT"]
[Termination "zsizsi99 won by resignation"]

1. e4 {[%clk 0:02:59.2]} 1... c5 {[%clk 0:02:58.9]} 2. Nf3 {[%clk 0:02:58.5]}
2... Nc6 {[%clk 0:02:57.5]} 3. d4 {[%clk 0:02:58.5]} 3... cxd4 {[%clk
0:02:57.1]} 4. Nxd4 {[%clk 0:02:59.4]} 4... e5 {[%clk 0:02:57.3]} 5. Nb5 {[%clk
0:02:58.6]} 5... d6 {[%clk 0:02:57.8]} 6. c4 {[%clk 0:02:57]} 6... Nf6 {[%clk
0:02:57.5]} 7. N1c3 {[%clk 0:02:50.2]} 7... a6 {[%clk 0:02:58]} 8. Na3 {[%clk
0:02:49.2]} 8... g6 {[%clk 0:02:58.4]} 9. Nc2 {[%clk 0:02:45.7]} 9... Bg7 {[%clk
0:02:55.7]} 10. Be3 {[%clk 0:02:43.3]} 10... O-O {[%clk 0:02:55.2]} 11. f3
{[%clk 0:02:40.7]} 11... Be6 {[%clk 0:02:53.1]} 12. Be2 {[%clk 0:02:35]} 12...
Rc8 {[%clk 0:02:46.9]} 13. b3 {[%clk 0:02:28.1]} 13... b5 {[%clk 0:02:40.2]} 14.
cxb5 {[%clk 0:02:21.5]} 14... axb5 {[%clk 0:02:40.5]} 15. Bxb5 {[%clk
0:02:04.6]} 15... d5 {[%clk 0:02:36.5]} 16. exd5 {[%clk 0:01:58.9]} 16... Nxd5
{[%clk 0:02:35.4]} 17. Nxd5 {[%clk 0:01:55]} 17... Qa5+ {[%clk 0:02:34.6]} 18.
Qd2 {[%clk 0:01:31.7]} 18... Qxb5 {[%clk 0:02:29.5]} 19. Nc3 {[%clk 0:01:20.5]}
19... Qa6 {[%clk 0:02:28.6]} 20. Ne4 {[%clk 0:01:08.5]} 20... Rfd8 {[%clk
0:02:24.6]} 21. Nc5 {[%clk 0:00:58.7]} 21... Rxd2 {[%clk 0:02:22.5]} 22. Nxa6
{[%clk 0:00:55.8]} 22... Rxc2 {[%clk 0:02:22.6]} 23. Nc5 {[%clk 0:00:54.5]}
23... e4 {[%clk 0:02:11.9]} 24. Rd1 {[%clk 0:00:50.5]} 24... exf3 {[%clk
0:02:02.5]} 25. gxf3 {[%clk 0:00:51.4]} 25... Rxa2 {[%clk 0:02:02]} 26. Ne4
{[%clk 0:00:39.3]} 26... Bxb3 {[%clk 0:01:56.6]} 27. Rc1 {[%clk 0:00:39]} 27...
Bb2 {[%clk 0:01:53.4]} 28. O-O {[%clk 0:00:24.7]} 28... Bxc1 {[%clk 0:01:52.5]}
29. Rxc1 {[%clk 0:00:24]} 29... Be6 {[%clk 0:01:49.1]} 30. Nd6 {[%clk
0:00:22.6]} 30... Rb8 {[%clk 0:01:32]} 31. Rxc6 {[%clk 0:00:20]} 31... Rb1+
{[%clk 0:01:31.8]} 32. Bc1 {[%clk 0:00:13.3]} 32... Raa1 {[%clk 0:01:31.6]} 33.
Rc8+ {[%clk 0:00:10]} 33... Bxc8 {[%clk 0:01:28.5]} 0-1

[Event "Early-Titled-Tuesday-Blitz-July-09-2024"]
[Site "Chess.com"]
[Date "2024.07.09"]
[Round "1"]
[White "GHANDEEVAM2003"]
[Black "Lady_Nika"]
[Result "1-0"]
[WhiteElo "3182"]
[BlackElo "2539"]
[TimeControl "180+1"]
[EndTime "8:05:49 PDT"]
[Termination "GHANDEEVAM2003 won on time"]

1. Nf3 {[%clk 0:03:00.9]} 1... d5 {[%clk 0:03:00]} 2. b3 {[%clk 0:02:56.5]} 2...
Nf6 {[%clk 0:02:59.9]} 3. Bb2 {[%clk 0:02:54.7]} 3... g6 {[%clk 0:03:00.5]} 4.
c4 {[%clk 0:02:51.7]} 4... c6 {[%clk 0:03:00.2]} 5. cxd5 {[%clk 0:02:46.5]} 5...
cxd5 {[%clk 0:02:59.7]} 6. Bxf6 {[%clk 0:02:47]} 6... exf6 {[%clk 0:02:59.6]} 7.
e3 {[%clk 0:02:47.7]} 7... Nc6 {[%clk 0:02:58.7]} 8. d4 {[%clk 0:02:45.7]} 8...
Bb4+ {[%clk 0:02:57.4]} 9. Nbd2 {[%clk 0:02:45.8]} 9... Bg4 {[%clk 0:02:54.4]}
10. a3 {[%clk 0:02:44.2]} 10... Bxd2+ {[%clk 0:02:52.7]} 11. Qxd2 {[%clk
0:02:44.2]} 11... Bxf3 {[%clk 0:02:52.8]} 12. gxf3 {[%clk 0:02:45.1]} 12... a6
{[%clk 0:02:52.6]} 13. f4 {[%clk 0:02:39.9]} 13... O-O {[%clk 0:02:47.1]} 14. h4
{[%clk 0:02:37.4]} 14... f5 {[%clk 0:02:42.9]} 15. h5 {[%clk 0:02:36.5]} 15...
Re8 {[%clk 0:02:40.7]} 16. Bg2 {[%clk 0:02:31.9]} 16... Qd6 {[%clk 0:02:38.8]}
17. Kf1 {[%clk 0:02:29.9]} 17... Re7 {[%clk 0:02:25.2]} 18. b4 {[%clk
0:02:27.6]} 18... Rae8 {[%clk 0:02:24.9]} 19. Rc1 {[%clk 0:02:28.1]} 19... Nb8
{[%clk 0:02:24.9]} 20. Rc5 {[%clk 0:02:27.4]} 20... Nd7 {[%clk 0:01:58.9]} 21.
Rxd5 {[%clk 0:02:27.5]} 21... Qe6 {[%clk 0:01:58.9]} 22. Bf3 {[%clk 0:02:19.6]}
22... Nf6 {[%clk 0:01:57.1]} 23. Re5 {[%clk 0:02:19.3]} 23... Qc4+ {[%clk
0:01:57]} 24. Kg2 {[%clk 0:02:18.7]} 24... Ng4 {[%clk 0:01:00.7]} 25. Bxg4
{[%clk 0:02:03.8]} 25... fxg4 {[%clk 0:01:00.5]} 26. Rc1 {[%clk 0:02:03.2]}
26... Qb3 {[%clk 0:00:52.5]} 27. Rxe7 {[%clk 0:01:59]} 27... Rxe7 {[%clk
0:00:51.1]} 28. d5 {[%clk 0:01:59.6]} 28... gxh5 {[%clk 0:00:47.5]} 29. d6
{[%clk 0:01:50]} 29... Rd7 {[%clk 0:00:42.9]} 30. Qd4 {[%clk 0:01:47.5]} 30...
Rd8 {[%clk 0:00:20.5]} 31. Rc5 {[%clk 0:01:45]} 31... h6 {[%clk 0:00:15.5]} 32.
Qf6 {[%clk 0:01:44.8]} 32... Rf8 {[%clk 0:00:04.4]} 33. Qxh6 {[%clk 0:01:41.6]}
1-0

[Event "Early-Titled-Tuesday-Blitz-July-09-2024"]
[Site "Chess.com"]
[Date "2024.07.09"]
[Round "1"]
[White "kreonx"]
[Black "ViIIagra"]
[Result "0-1"]
[WhiteElo "2473"]
[BlackElo "2869"]
[TimeControl "180+1"]
[EndTime "8:05:54 PDT"]
[Termination "ViIIagra won by checkmate"]

1. e4 {[%clk 0:03:00.9]} 1... d6 {[%clk 0:02:59.9]} 2. Nc3 {[%clk 0:02:58.4]}
2... Nf6 {[%clk 0:03:00.5]} 3. g3 {[%clk 0:02:58.5]} 3... g6 {[%clk 0:02:59.1]}
4. Bg2 {[%clk 0:02:58.7]} 4... Bg7 {[%clk 0:02:59.6]} 5. Nge2 {[%clk 0:02:59.1]}
5... O-O {[%clk 0:03:00.2]} 6. d4 {[%clk 0:02:59.6]} 6... c5 {[%clk 0:03:00.5]}
7. h3 {[%clk 0:02:59.3]} 7... cxd4 {[%clk 0:02:58]} 8. Nxd4 {[%clk 0:03:00.2]}
8... Nc6 {[%clk 0:02:58.5]} 9. Be3 {[%clk 0:02:59.4]} 9... Bd7 {[%clk
0:02:56.3]} 10. O-O {[%clk 0:02:58.2]} 10... a6 {[%clk 0:02:54.6]} 11. Re1
{[%clk 0:02:53.3]} 11... Rc8 {[%clk 0:02:51.4]} 12. Nce2 {[%clk 0:02:37.3]}
12... Ne5 {[%clk 0:02:49.3]} 13. b3 {[%clk 0:02:36.5]} 13... b5 {[%clk
0:02:49.6]} 14. f4 {[%clk 0:02:35.9]} 14... Nc6 {[%clk 0:02:50]} 15. Rc1 {[%clk
0:02:31.7]} 15... Qa5 {[%clk 0:02:49.2]} 16. Nxc6 {[%clk 0:01:35.8]} 16... Bxc6
{[%clk 0:02:49.2]} 17. e5 {[%clk 0:01:36.7]} 17... dxe5 {[%clk 0:02:45.5]} 18.
fxe5 {[%clk 0:01:37.6]} 18... Rfd8 {[%clk 0:02:35.2]} 19. Nd4 {[%clk 0:01:32.2]}
19... Nd5 {[%clk 0:02:20.2]} 20. Nxc6 {[%clk 0:01:26.8]} 20... Rxc6 {[%clk
0:02:07.9]} 21. Bxd5 {[%clk 0:01:23.4]} 21... e6 {[%clk 0:02:08.3]} 22. Bxc6
{[%clk 0:01:16.3]} 22... Rxd1 {[%clk 0:02:07.9]} 23. Rcxd1 {[%clk 0:01:15.1]}
23... Bxe5 {[%clk 0:02:08.5]} 24. Bf4 {[%clk 0:00:52.6]} 24... Bxf4 {[%clk
0:02:01.7]} 25. gxf4 {[%clk 0:00:53.5]} 25... Qb6+ {[%clk 0:02:01.9]} 26. Kh2
{[%clk 0:00:49.6]} 26... Qxc6 {[%clk 0:02:02.8]} 27. Rd2 {[%clk 0:00:49.4]}
27... Qc3 {[%clk 0:02:01.5]} 28. Ree2 {[%clk 0:00:46.7]} 28... b4 {[%clk
0:01:58]} 29. Rd3 {[%clk 0:00:42.5]} 29... Qc7 {[%clk 0:01:57.1]} 30. Kg3 {[%clk
0:00:40.5]} 30... g5 {[%clk 0:01:51.2]} 31. Rf3 {[%clk 0:00:38.7]} 31... a5
{[%clk 0:01:50.8]} 32. Kg4 {[%clk 0:00:36.4]} 32... gxf4 {[%clk 0:01:44.4]} 33.
Rxf4 {[%clk 0:00:37.3]} 33... h5+ {[%clk 0:01:41.2]} 34. Kg5 {[%clk 0:00:28.7]}
34... Qc5+ {[%clk 0:01:14.5]} 35. Kf6 {[%clk 0:00:25.3]} 35... Kf8 {[%clk
0:01:14.6]} 36. Re5 {[%clk 0:00:19.3]} 36... Qe7# {[%clk 0:01:14.5]} 0-1

[Event "Early-Titled-Tuesday-Blitz-July-09-2024"]
[Site "Chess.com"]
[Date "2024.07.09"]
[Round "1"]
[White "MetiForce"]
[Black "nj123456"]
[Result "1-0"]
[WhiteElo "2848"]
[BlackElo "2459"]
[TimeControl "180+1"]
[EndTime "8:05:54 PDT"]
[Termination "MetiForce won by resignation"]

1. d4 {[%clk 0:03:00.2]} 1... d5 {[%clk 0:02:59.9]} 2. c4 {[%clk 0:03:00.7]}
2... e6 {[%clk 0:03:00.4]} 3. Nc3 {[%clk 0:03:01.2]} 3... Nf6 {[%clk 0:03:00.5]}
4. Nf3 {[%clk 0:03:01]} 4... Be7 {[%clk 0:03:00.1]} 5. cxd5 {[%clk 0:03:00.6]}
5... exd5 {[%clk 0:03:01]} 6. Bf4 {[%clk 0:03:00.9]} 6... c6 {[%clk 0:03:00.3]}
7. e3 {[%clk 0:03:01.3]} 7... O-O {[%clk 0:03:00.5]} 8. Bd3 {[%clk 0:03:01.4]}
8... Re8 {[%clk 0:03:00.8]} 9. h3 {[%clk 0:03:01.2]} 9... Nbd7 {[%clk 0:02:59]}
10. Qc2 {[%clk 0:03:01.3]} 10... Nf8 {[%clk 0:02:59.4]} 11. Bh2 {[%clk
0:03:00.8]} 11... Bd6 {[%clk 0:02:57.4]} 12. Ne5 {[%clk 0:03:01]} 12... Ng6
{[%clk 0:02:46.5]} 13. f4 {[%clk 0:03:00.6]} 13... c5 {[%clk 0:02:36.4]} 14. O-O
{[%clk 0:02:53.2]} 14... c4 {[%clk 0:02:02.7]} 15. Be2 {[%clk 0:02:47.6]} 15...
Rb8 {[%clk 0:01:42]} 16. Bf3 {[%clk 0:02:44]} 16... Bf8 {[%clk 0:01:34.6]} 17.
f5 {[%clk 0:02:09.9]} 17... Ne7 {[%clk 0:01:24.9]} 18. g4 {[%clk 0:02:06.9]}
18... Ra8 {[%clk 0:01:00.7]} 19. Qg2 {[%clk 0:02:04.9]} 19... b5 {[%clk
0:00:22.1]} 20. g5 {[%clk 0:01:59.8]} 20... Ne4 {[%clk 0:00:11.7]} 21. Nxe4
{[%clk 0:01:59.5]} 21... dxe4 {[%clk 0:00:12.6]} 22. Bxe4 {[%clk 0:02:00.2]}
22... Rb8 {[%clk 0:00:10.5]} 23. f6 {[%clk 0:01:59.9]} 23... Ng6 {[%clk
0:00:09.8]} 24. Nc6 {[%clk 0:01:56.4]} 24... Qb6 {[%clk 0:00:08.1]} 25. Nxb8
{[%clk 0:01:54.2]} 25... Be6 {[%clk 0:00:05.5]} 26. Nc6 {[%clk 0:01:53.3]} 26...
Rc8 {[%clk 0:00:04.9]} 27. Ne5 {[%clk 0:01:52.6]} 27... Nxe5 {[%clk 0:00:04.8]}
28. Bxe5 {[%clk 0:01:53.5]} 28... g6 {[%clk 0:00:05.7]} 29. Kh2 {[%clk
0:01:52.1]} 29... Qd8 {[%clk 0:00:05]} 30. d5 {[%clk 0:01:51.9]} 30... Bd7
{[%clk 0:00:05]} 31. Qg3 {[%clk 0:01:51.9]} 31... Be8 {[%clk 0:00:05.1]} 32. d6
{[%clk 0:01:51.2]} 32... Bd7 {[%clk 0:00:05]} 33. Rad1 {[%clk 0:01:51.6]} 33...
Be6 {[%clk 0:00:04.3]} 34. Bd5 {[%clk 0:01:51.9]} 34... Qd7 {[%clk 0:00:04.6]}
35. Bxe6 {[%clk 0:01:52]} 35... Qxe6 {[%clk 0:00:03.7]} 36. Bf4 {[%clk
0:01:52.2]} 36... Rd8 {[%clk 0:00:04.1]} 37. Qg4 {[%clk 0:01:52.6]} 37... Rd7
{[%clk 0:00:04]} 38. Qxe6 {[%clk 0:01:52.8]} 38... fxe6 {[%clk 0:00:04.9]} 39.
e4 {[%clk 0:01:52.9]} 39... Kf7 {[%clk 0:00:05.8]} 40. e5 {[%clk 0:01:53.6]}
40... Rb7 {[%clk 0:00:05.6]} 41. d7 {[%clk 0:01:53.2]} 1-0

[Event "Early-Titled-Tuesday-Blitz-July-09-2024"]
[Site "Chess.com"]
[Date "2024.07.09"]
[Round "1"]
[White "Evan_Attaker"]
[Black "ural58"]
[Result "1-0"]
[WhiteElo "2740"]
[BlackElo "2416"]
[TimeControl "180+1"]
[EndTime "8:05:54 PDT"]
[Termination "Evan_Attaker won by resignation"]

1. a3 {[%clk 0:03:00.9]} 1... g6 {[%clk 0:02:53.7]} 2. h4 {[%clk 0:02:58.9]}
2... h5 {[%clk 0:02:51.7]} 3. Nf3 {[%clk 0:02:56.9]} 3... Bg7 {[%clk 0:02:51.5]}
4. c4 {[%clk 0:02:55.3]} 4... c5 {[%clk 0:02:50.1]} 5. Nc3 {[%clk 0:02:54.9]}
5... Nh6 {[%clk 0:02:48.9]} 6. b4 {[%clk 0:02:53.7]} 6... O-O {[%clk 0:02:44.4]}
7. Bb2 {[%clk 0:02:49.3]} 7... b6 {[%clk 0:02:41.6]} 8. g3 {[%clk 0:02:47.7]}
8... Bb7 {[%clk 0:02:28.5]} 9. Bg2 {[%clk 0:02:46.4]} 9... cxb4 {[%clk
0:02:28.6]} 10. axb4 {[%clk 0:02:45.6]} 10... Nc6 {[%clk 0:02:29.5]} 11. Ng5
{[%clk 0:02:36.1]} 11... Qc8 {[%clk 0:02:18.9]} 12. b5 {[%clk 0:02:25.5]} 12...
Ne5 {[%clk 0:02:15.8]} 13. Nd5 {[%clk 0:02:13.3]} 13... Bxd5 {[%clk 0:02:11.2]}
14. Bxd5 {[%clk 0:02:14.2]} 14... Nxc4 {[%clk 0:02:03]} 15. Bxg7 {[%clk
0:02:11.7]} 15... Kxg7 {[%clk 0:02:03.9]} 16. Rc1 {[%clk 0:01:36.1]} 16... Qc5
{[%clk 0:02:01.3]} 17. Bxc4 {[%clk 0:01:33.6]} 17... d5 {[%clk 0:01:57.7]} 18.
Bd3 {[%clk 0:01:31.7]} 18... Qd6 {[%clk 0:01:54.1]} 19. O-O {[%clk 0:01:30.5]}
19... e5 {[%clk 0:01:54]} 20. Rc6 {[%clk 0:01:29.1]} 20... Qd7 {[%clk
0:01:53.2]} 21. e4 {[%clk 0:01:21]} 21... Rad8 {[%clk 0:01:43.8]} 22. Qb1 {[%clk
0:00:52.7]} 22... dxe4 {[%clk 0:01:17.6]} 23. Bxe4 {[%clk 0:00:50.2]} 23... Qxd2
{[%clk 0:01:17.6]} 24. Bxg6 {[%clk 0:00:48.4]} 24... f5 {[%clk 0:01:04.2]} 25.
Bxh5 {[%clk 0:00:41.2]} 25... Rd6 {[%clk 0:00:56.1]} 26. Rd1 {[%clk 0:00:38.7]}
1-0

[Event "Early-Titled-Tuesday-Blitz-July-09-2024"]
[Site "Chess.com"]
[Date "2024.07.09"]
[Round "1"]
[White "David_Arutinian"]
[Black "Mattheii"]
[Result "1-0"]
[WhiteElo "2818"]
[BlackElo "2452"]
[TimeControl "180+1"]
[EndTime "8:05:59 PDT"]
[Termination "David_Arutinian won by resignation"]

1. Nf3 {[%clk 0:03:00.1]} 1... Nf6 {[%clk 0:02:56.5]} 2. c4 {[%clk 0:03:00.2]}
2... e6 {[%clk 0:02:56.4]} 3. e3 {[%clk 0:02:58.9]} 3... d5 {[%clk 0:02:56.6]}
4. b3 {[%clk 0:02:58.9]} 4... Be7 {[%clk 0:02:53.5]} 5. Bb2 {[%clk 0:02:58.9]}
5... O-O {[%clk 0:02:53.3]} 6. Nc3 {[%clk 0:02:59.5]} 6... b6 {[%clk 0:02:49.3]}
7. g3 {[%clk 0:02:58.3]} 7... Bb7 {[%clk 0:02:49.4]} 8. Bg2 {[%clk 0:02:58.3]}
8... Nbd7 {[%clk 0:02:46.7]} 9. O-O {[%clk 0:02:58.2]} 9... c5 {[%clk
0:02:45.8]} 10. Qe2 {[%clk 0:02:58.8]} 10... dxc4 {[%clk 0:02:40.9]} 11. bxc4
{[%clk 0:02:58.3]} 11... Rc8 {[%clk 0:02:38]} 12. Rad1 {[%clk 0:02:58.8]} 12...
Qc7 {[%clk 0:02:34.9]} 13. Ne1 {[%clk 0:02:58.5]} 13... Bxg2 {[%clk 0:02:34]}
14. Nxg2 {[%clk 0:02:59.4]} 14... Qb7 {[%clk 0:02:33.5]} 15. d3 {[%clk 0:02:56]}
15... Rfd8 {[%clk 0:02:32.3]} 16. f4 {[%clk 0:02:55.4]} 16... a6 {[%clk
0:02:28.5]} 17. a4 {[%clk 0:02:55]} 17... Nb8 {[%clk 0:02:27.8]} 18. f5 {[%clk
0:02:54.3]} 18... exf5 {[%clk 0:02:22.5]} 19. Rxf5 {[%clk 0:02:53.6]} 19... Nc6
{[%clk 0:02:22.1]} 20. g4 {[%clk 0:02:52.9]} 20... Nb4 {[%clk 0:02:19.4]} 21. g5
{[%clk 0:02:51.4]} 21... Ne8 {[%clk 0:02:16.4]} 22. h4 {[%clk 0:02:48.2]} 22...
Qd7 {[%clk 0:02:11.3]} 23. e4 {[%clk 0:02:46.2]} 23... Nd6 {[%clk 0:02:01.8]}
24. Rff1 {[%clk 0:02:41.9]} 24... Bf8 {[%clk 0:01:56.8]} 25. Nf4 {[%clk
0:02:36.3]} 25... Re8 {[%clk 0:01:53.2]} 26. Ncd5 {[%clk 0:02:34.3]} 26... Nxd5
{[%clk 0:01:41.7]} 27. Nxd5 {[%clk 0:02:34.1]} 27... Rb8 {[%clk 0:01:38.4]} 28.
Rf2 {[%clk 0:02:15.2]} 28... b5 {[%clk 0:01:37.2]} 29. axb5 {[%clk 0:02:14.8]}
29... axb5 {[%clk 0:01:37.4]} 30. cxb5 {[%clk 0:02:12.8]} 30... c4 {[%clk
0:01:26.4]} 31. e5 {[%clk 0:01:59]} 31... Qxb5 {[%clk 0:01:11.4]} 32. Nc7 {[%clk
0:01:57.6]} 32... cxd3 {[%clk 0:01:04.4]} 33. Rxd3 {[%clk 0:01:54.9]} 33... Qc4
{[%clk 0:00:43.5]} 34. Nxe8 {[%clk 0:01:51.5]} 34... Rxe8 {[%clk 0:00:44.4]} 35.
Qf3 {[%clk 0:01:37.4]} 35... Nb5 {[%clk 0:00:09.5]} 36. Rd5 {[%clk 0:01:31.6]}
36... Nc7 {[%clk 0:00:05.6]} 37. Qxf7+ {[%clk 0:01:30.2]} 1-0